fUST/lending_fUST_20250702
["ID","MTS","AMOUNT","RATE_DAILY","PERIOD"]
[368984316,1751425833350,-460.0,0.00017126,2]
[368984318,1751425833359,-460.0,0.00017126,2]
[368984320,1751425833370,-605.78,0.00017126,2]
[368984322,1751425833380,-460.0,0.00017126,2]
[368984324,1751425833390,-1024.45,0.00017126,2]
[368984326,1751425833399,-907.78,0.00017126,2]
[368984328,1751425833409,-460.0,0.00017126,2]
[368984330,1751425833419,-460.0,0.00017126,2]
[368984332,1751425833429,-460.0,0.00017126,2]
[368984334,1751425833438,-1087.91,0.00017126,2]
[368984336,1751425833447,-460.0,0.00017126,2]
[368984338,1751425833456,-816.5,0.00017126,2]
[368984340,1751425833466,-460.0,0.00017126,2]
[368984342,1751425833476,-596.78,0.00017126,2]
[368984344,1751425833485,-460.0,0.00017126,2]
[368984346,1751425833494,-460.0,0.00017126,2]
[368984348,1751425833504,-460.0,0.00017126,2]
[368984350,1751425833513,-460.0,0.00017126,2]
[368984352,1751425833522,-585.14,0.00017126,2]
[368984354,1751425833532,-469.8335516,0.00017126,2]
[368984356,1751425833542,-460.0,0.00017126,2]
[368984358,1751425833552,-460.0,0.00017126,2]
[368984360,1751425833562,-468.61553662,0.00017128,2]
[368984362,1751425833571,-463.76875905,0.00017128,2]
[368984364,1751425833581,-463.53335757,0.00017128,2]
[368984366,1751425833591,-466.76656063,0.00017128,2]
[368984368,1751425833601,-460.0,0.00017128,2]
[368984370,1751425833611,-460.0,0.00017128,2]
[368984372,1751425833621,-465.45866345,0.00017128,2]
[368984374,1751425833630,-460.0,0.00017128,2]
[368984376,1751425833641,-461.3502101,0.00017128,2]
[368984378,1751425833652,-468.08242228,0.00017128,2]
[368984380,1751425833663,-460.0,0.00017128,2]
[368984382,1751425833672,-460.0,0.00017128,2]
[368984384,1751425833682,-460.0,0.00017128,2]
[368984386,1751425833692,-527.24570607,0.00017128,2]
[368984388,1751425833702,-562.51,0.00017128,2]
[368984390,1751425833711,-460.0,0.00017128,2]
[368984392,1751425833722,-467.8992684,0.00017128,2]
[368984394,1751425833731,-322.47704252,0.00017128,2]
[368984396,1751425833741,-460.0,0.00017128,2]
[368984398,1751425833751,-460.0,0.00017128,2]
[368984400,1751425833760,-460.0,0.00017128,2]
[368984402,1751425833770,-460.0,0.00017128,2]
[368984404,1751425833781,-467.09628161,0.00017128,2]
[368984406,1751425833791,-465.38425042,0.00017128,2]
[368984408,1751425833800,-505.69699096,0.00017128,2]
[368984410,1751425833810,-460.0,0.00017128,2]
[368984412,1751425833821,-460.0,0.00017128,2]
[368984431,1751425833978,-460.0,0.00017128,2]
[368984433,1751425833988,-261.17765147,0.00017128,2]
[368984435,1751425833998,-460.0,0.00017128,2]
[368984437,1751425834007,-478.35380588,0.00017128,2]
[368984439,1751425834017,-215.61386506,0.00017128,2]
[368984441,1751425834027,-460.0,0.00017128,2]
[368984443,1751425834036,-460.0,0.00017128,2]
[368984445,1751425834046,-460.0,0.00017128,2]
[368984447,1751425834056,-460.0,0.00017128,2]
[368984449,1751425834066,-477.9672137,0.00017128,2]
[368984451,1751425834076,-257.4515551,0.00017128,2]
[368984453,1751425834085,-468.32433623,0.00017128,2]
[368984455,1751425834095,-477.57488734,0.00017128,2]
[368984457,1751425834105,-471.67582145,0.00017128,2]
[368984459,1751425834114,-460.0,0.00017128,2]
[368984461,1751425834124,-465.23803958,0.00017128,2]
[368984463,1751425834133,-478.06888079,0.00017128,2]
[368984465,1751425834143,-460.0,0.00017128,2]
[368984467,1751425834152,-473.82978772,0.00017128,2]
[368984469,1751425834162,-389.44235927,0.00017128,2]
[368984471,1751425834171,-460.0,0.00017128,2]
[368984473,1751425834180,-512.98011438,0.00017128,2]
[368984475,1751425834191,-346.57422453,0.00017128,2]
[368984477,1751425834200,-460.0,0.00017128,2]
[368984479,1751425834209,-460.0,0.00017128,2]
[368984481,1751425834218,-460.0,0.00017128,2]
[368984483,1751425834228,-460.0,0.00017128,2]
[368984485,1751425834237,-460.0,0.00017128,2]
[368984487,1751425834247,-580.12,0.00017128,2]
[368984489,1751425834256,-468.88935289,0.00017128,2]
[368984491,1751425834265,-343.49747849,0.00017128,2]
[368984493,1751425834275,-460.0,0.00017128,2]
[368984495,1751425834284,-460.0,0.00017128,2]
[368984497,1751425834294,-460.0,0.00017128,2]
[368984499,1751425834304,-460.0,0.00017128,2]
[368984501,1751425834313,-462.05271501,0.00017128,2]
[368984503,1751425834322,-460.0,0.00017128,2]
[368984505,1751425834332,-460.0,0.00017128,2]
[368984507,1751425834342,-465.27061218,0.00017128,2]
[368984509,1751425834352,-1684.06,0.00017128,2]
[368984511,1751425834362,-460.0,0.0001713,2]
[368984512,1751425834372,-460.0,0.0001713,2]
[368984513,1751425834382,-460.0,0.0001713,2]
[368984514,1751425834392,-460.0,0.0001713,2]
[368984515,1751425834401,-542.71,0.0001713,2]
[368984516,1751425834411,-460.0,0.0001713,2]
[368984517,1751425834421,-460.0,0.0001713,2]
[368984518,1751425834431,-460.0,0.0001713,2]
[368984519,1751425834440,-460.0,0.0001713,2]
[368984520,1751425834450,-1365.38,0.0001713,2]
[368984521,1751425834460,-460.0,0.0001713,2]
[368984522,1751425834470,-460.0,0.0001713,2]
[368984523,1751425834480,-467.3725344,0.0001713,2]
[368984524,1751425834490,-151.0,0.00017132,2]
[368984525,1751425834499,-472.82489414,0.00017303,2]
[368984526,1751425834509,-460.0,0.00017303,2]
[368984527,1751425834519,-460.0,0.00017303,2]
[368984528,1751425834528,-460.0,0.00017303,2]
[368984529,1751425834537,-460.0,0.00017303,2]
[368984530,1751425834547,-460.0,0.00017303,2]
[368984531,1751425834557,-460.0,0.00017303,2]
[368984532,1751425834568,-462.60775297,0.00017303,2]
[368984534,1751425834578,-453.71089686,0.00017303,2]
[368984535,1751425834588,-460.0,0.00017303,2]
[368984537,1751425834597,-460.0,0.00017303,2]
[368984539,1751425834607,-472.5068107,0.00017303,2]
[368984541,1751425834617,-473.48171401,0.00017303,2]
[368984543,1751425834626,-468.88545086,0.00017303,2]
[368984545,1751425834636,-460.0,0.00017303,2]
[368984547,1751425834648,-460.0,0.00017303,2]
[368984549,1751425834657,-460.0,0.00017303,2]
[368984551,1751425834667,-384.7,0.00017303,2]
[368984554,1751425834677,-460.0,0.00017303,2]
[368984556,1751425834687,-460.0,0.00017303,2]
[368984558,1751425834696,-460.0,0.00017303,2]
[368984560,1751425834705,-460.0,0.00017303,2]
[368984562,1751425834716,-473.91990853,0.00017303,2]
[368984564,1751425834727,-467.70514249,0.00017303,2]
[368984566,1751425834736,-469.89915443,0.00017304,2]
[368984568,1751425834746,-518.84540724,0.00017304,2]
[368984570,1751425834756,-469.87065589,0.00017304,2]
[368984572,1751425834766,-479.4749776,0.00017304,2]
[368984574,1751425834777,-162.5547572,0.00017304,2]
[368984576,1751425834786,-481.16426623,0.00017304,2]
[368984578,1751425834795,-384.16023271,0.00017304,2]
[368984580,1751425834804,-465.767523,0.00017304,2]
[368984582,1751425834813,-460.0,0.00017304,2]
[368984584,1751425834822,-537.36784584,0.00017304,2]
[368984586,1751425834832,-460.0,0.00017304,2]
[368984587,1751425834841,-512.90371243,0.00017304,2]
[368984588,1751425834850,-460.0,0.00017304,2]
[368984590,1751425834859,-474.47615982,0.00017304,2]
[368984592,1751425834869,-508.31508876,0.00017304,2]
[368984594,1751425834878,-460.0,0.00017304,2]
[368984596,1751425834887,-460.0,0.00017304,2]
[368984598,1751425834896,-460.0,0.00017399,2]
[368984600,1751425834905,-460.0,0.00017399,2]
[368984602,1751425834914,-460.0,0.00017399,2]
[368984604,1751425834924,-605.78,0.000174,2]
[368984606,1751425834935,-460.0,0.000174,2]
[368984608,1751425834944,-1024.45,0.000174,2]
[368984610,1751425834954,-907.78,0.000174,2]
[368984612,1751425834963,-460.0,0.000174,2]
[368984614,1751425834972,-460.0,0.000174,2]
[368984616,1751425834981,-1087.91,0.000174,2]
[368984618,1751425834990,-460.0,0.000174,2]
[368984620,1751425834999,-404.73964617,0.000174,2]
[368984625,1751425835035,1000.0,0.000164,2]
[368984635,1751425838573,-448.3292053,0.00017026,2]
[368984636,1751425838583,-460.0,0.00017125,2]
[368984637,1751425838592,-460.0,0.00017126,2]
[368984638,1751425838602,-411.76035383,0.000174,2]
[368984639,1751425838612,-460.0,0.000174,2]
[368984640,1751425838623,-596.78,0.000174,2]
[368984641,1751425838634,-460.0,0.000174,2]
[368984642,1751425838647,-460.0,0.000174,2]
[368984643,1751425838657,-460.0,0.000174,2]
[368984644,1751425838667,-585.14,0.000174,2]
[368984645,1751425838676,-460.0,0.000174,2]
[368984646,1751425838686,-564.15291014,0.000174,2]
[368984647,1751425838695,-151.0,0.000174,2]
[368984648,1751425838704,-34091.39445223,0.000174,2]
[368984649,1751425838714,-373.7,0.00017402,2]
[368984650,1751425838724,-460.0,0.00017402,2]
[368984651,1751425838735,-460.0,0.00017402,2]
[368984652,1751425838744,-460.0,0.00017402,2]
[368984653,1751425838753,-472.71091827,0.00017402,2]
[368984654,1751425838763,-460.0,0.00017402,2]
[368984655,1751425838771,-460.0,0.00017402,2]
[368984656,1751425838781,-460.0,0.00017402,2]
[368984657,1751425838790,-460.0,0.00017402,2]
[368984658,1751425838800,-460.0,0.00017402,2]
[368984659,1751425838810,-460.0,0.00017402,2]
[368984660,1751425838822,-449.43368127,0.00017402,2]
[368984661,1751425838831,-460.0,0.00017402,2]
[368984662,1751425838841,-460.0,0.00017402,2]
[368984663,1751425838851,-460.0,0.00017402,2]
[368984664,1751425838860,-460.0,0.00017402,2]
[368984665,1751425838869,-580.12,0.00017402,2]
[368984666,1751425838879,-460.0,0.00017402,2]
[368984667,1751425838888,-460.0,0.00017402,2]
[368984668,1751425838897,-460.0,0.00017402,2]
[368984669,1751425838907,-460.0,0.00017402,2]
[368984670,1751425838917,-460.0,0.00017402,2]
[368984671,1751425838927,-1684.06,0.00017402,2]
[368984672,1751425838937,-460.0,0.00017404,2]
[368984673,1751425838946,-460.0,0.00017404,2]
[368984674,1751425838956,-460.0,0.00017404,2]
[368984675,1751425838965,-460.0,0.00017404,2]
[368984676,1751425838974,-460.0,0.00017404,2]
[368984677,1751425838983,-542.71,0.00017404,2]
[368984678,1751425838993,-460.0,0.00017404,2]
[368984679,1751425839002,-460.0,0.00017404,2]
[368984680,1751425839011,-460.0,0.00017404,2]
[368984681,1751425839020,-460.0,0.00017404,2]
[368984682,1751425839030,-1365.38,0.00017404,2]
[368984683,1751425839039,-460.0,0.00017404,2]
[368984684,1751425839050,-460.0,0.00017404,2]
[368984685,1751425839060,-247.03008757,0.00017405,2]
[368984686,1751425839069,-442.49910839,0.00017405,2]
[368984687,1751425839079,-460.0,0.00017405,2]
[368984688,1751425839088,-460.78787079,0.00017405,2]
[368984689,1751425839098,-367.51541084,0.00017405,2]
[368984690,1751425839108,-460.0,0.00017405,2]
[368984691,1751425839117,-460.0,0.00017405,2]
[368984692,1751425839126,-460.0,0.00017405,2]
[368984693,1751425839136,-460.0,0.00017405,2]
[368984694,1751425839146,-221.19250088,0.00017415,2]
[368984695,1751425839157,-607.51,0.00017471,3]
[368984696,1751425839166,-271.44,0.00017471,3]
[368984697,1751425839175,-814.36,0.00017471,3]
[368984698,1751425839185,-259.73,0.00017471,3]
[368984699,1751425839194,-779.23,0.00017471,3]
[368984700,1751425839204,-500.0,0.00017473,2]
[368984701,1751425839213,-1375.74535324,0.00017477,2]
[368984702,1751425839222,-173532.6537456,0.00017481,2]
[368984703,1751425839235,-196467.3462544,0.00017481,2]
[368984704,1751425839246,-460.0,0.00017577,2]
[368984705,1751425839255,-510.3,0.00017577,2]
[368984706,1751425839264,-460.0,0.00017577,2]
[368984707,1751425839274,-460.0,0.00017577,2]
[368984708,1751425839284,-476.8821032,0.00017577,2]
[368984709,1751425839293,-465.99104797,0.00017577,2]
[368984710,1751425839303,-460.0,0.00017577,2]
[368984711,1751425839313,-460.0,0.00017577,2]
[368984712,1751425839323,-460.0,0.00017577,2]
[368984713,1751425839333,-460.0,0.00017577,2]
[368984714,1751425839342,-468.21889852,0.00017577,2]
[368984715,1751425839352,-460.0,0.00017578,2]
[368984716,1751425839361,-460.0,0.00017578,2]
[368984717,1751425839370,-460.0,0.00017578,2]
[368984718,1751425839380,-460.0,0.00017673,2]
[368984719,1751425839389,-605.78,0.00017674,2]
[368984720,1751425839399,-1024.45,0.00017674,2]
[368984721,1751425839409,-907.78,0.00017674,2]
[368984722,1751425839418,-460.0,0.00017674,2]
[368984723,1751425839428,-460.0,0.00017674,2]
[368984724,1751425839438,-1087.91,0.00017674,2]
[368984725,1751425839448,-460.0,0.00017674,2]
[368984726,1751425839458,-816.5,0.00017674,2]
[368984727,1751425839467,-460.0,0.00017674,2]
[368984728,1751425839476,-596.78,0.00017674,2]
[368984729,1751425839486,-460.0,0.00017674,2]
[368984730,1751425839496,-460.0,0.00017674,2]
[368984731,1751425839506,-460.0,0.00017674,2]
[368984732,1751425839515,-585.14,0.00017674,2]
[368984733,1751425839526,-460.0,0.00017674,2]
[368984734,1751425839537,-460.0,0.00017676,2]
[368984735,1751425839547,-460.0,0.00017676,2]
[368984736,1751425839557,-460.0,0.00017676,2]
[368984737,1751425839566,-460.0,0.00017676,2]
[368984738,1751425839577,-460.0,0.00017676,2]
[368984739,1751425839586,-460.0,0.00017676,2]
[368984740,1751425839596,-460.0,0.00017676,2]
[368984741,1751425839605,-460.0,0.00017676,2]
[368984742,1751425839615,-460.0,0.00017676,2]
[368984743,1751425839625,-342.0440248,0.00017676,2]
[368984744,1751425839634,-460.0,0.00017676,2]
[368984745,1751425839646,-580.12,0.00017676,2]
[368984746,1751425839656,-460.0,0.00017676,2]
[368984747,1751425839666,-460.0,0.00017676,2]
[368984748,1751425839675,-460.0,0.00017676,2]
[368984749,1751425839685,-460.0,0.00017676,2]
[368984750,1751425839694,-1684.06,0.00017676,2]
[368984751,1751425839704,-430.91180982,0.00017678,2]
[368984752,1751425839714,-460.0,0.00017678,2]
[368984753,1751425839723,-460.0,0.00017678,2]
[368984754,1751425839734,-460.0,0.00017678,2]
[368984755,1751425839744,-460.0,0.00017678,2]
[368984756,1751425839753,-542.71,0.00017678,2]
[368984757,1751425839762,-460.0,0.00017678,2]
[368984758,1751425839772,-460.0,0.00017678,2]
[368984759,1751425839782,-460.0,0.00017678,2]
[368984760,1751425839792,-460.0,0.00017678,2]
[368984761,1751425839803,-1365.38,0.00017678,2]
[368984762,1751425839813,-460.0,0.00017678,2]
[368984763,1751425839822,-460.0,0.00017679,2]
[368984764,1751425839832,-292.27296155,0.00017679,2]
[368984765,1751425839842,-460.0,0.00017851,2]
[368984766,1751425839852,-227.16,0.00017851,2]
[368984767,1751425839863,-460.0,0.00017851,2]
[368984768,1751425839873,-460.0,0.00017852,2]
[368984769,1751425839883,-460.0,0.00017947,2]
[368984770,1751425839893,-605.78,0.00017948,2]
[368984771,1751425839903,-1024.45,0.00017948,2]
[368984772,1751425839913,-907.78,0.00017948,2]
[368984773,1751425839923,-460.0,0.00017948,2]
[368984774,1751425839933,-1087.91,0.00017948,2]
[368984775,1751425839944,-460.0,0.00017948,2]
[368984776,1751425840061,-816.5,0.00017948,2]
[368984777,1751425840071,-460.0,0.00017948,2]
[368984778,1751425840081,-596.78,0.00017948,2]
[368984779,1751425840091,-460.0,0.00017948,2]
[368984780,1751425840101,-460.0,0.00017948,2]
[368984781,1751425840111,-460.0,0.00017948,2]
[368984782,1751425840121,-585.14,0.00017948,2]
[368984783,1751425840130,-460.0,0.00017948,2]
[368984784,1751425840141,-460.0,0.0001795,2]
[368984785,1751425840150,-460.0,0.0001795,2]
[368984786,1751425840161,-460.0,0.0001795,2]
[368984787,1751425840171,-460.0,0.0001795,2]
[368984788,1751425840180,-460.0,0.0001795,2]
[368984789,1751425840190,-460.0,0.0001795,2]
[368984790,1751425840200,-460.0,0.0001795,2]
[368984791,1751425840210,-580.12,0.0001795,2]
[368984792,1751425840220,-460.0,0.0001795,2]
[368984793,1751425840230,-460.0,0.0001795,2]
[368984794,1751425840240,-460.0,0.0001795,2]
[368984795,1751425840251,-460.0,0.0001795,2]
[368984796,1751425840261,-1684.06,0.0001795,2]
[368984797,1751425840271,-460.0,0.00017952,2]
[368984798,1751425840280,-460.0,0.00017952,2]
[368984799,1751425840290,-460.0,0.00017952,2]
[368984800,1751425840300,-542.71,0.00017952,2]
[368984801,1751425840310,-460.0,0.00017952,2]
[368984802,1751425840320,-460.0,0.00017952,2]
[368984803,1751425840330,-460.0,0.00017952,2]
[368984804,1751425840340,-1365.38,0.00017952,2]
[368984805,1751425840350,-460.0,0.00017952,2]
[368984806,1751425840359,-1000.0,0.00018021,2]
[368984807,1751425840369,-1499.04023831,0.000181,2]
[368984808,1751425840380,-460.0,0.00018125,2]
[368984809,1751425840390,-460.0,0.00018126,2]
[368984810,1751425840400,-1499.04023808,0.00018176,2]
[368984811,1751425840409,-460.0,0.00018221,2]
[368984812,1751425840419,-605.78,0.00018222,2]
[368984813,1751425840429,-1024.45,0.00018222,2]
[368984814,1751425840439,-907.78,0.00018222,2]
[368984815,1751425840449,-1087.91,0.00018222,2]
[368984816,1751425840458,-460.0,0.00018222,2]
[368984817,1751425840468,-816.5,0.00018222,2]
[368984818,1751425840478,-596.78,0.00018222,2]
[368984819,1751425840487,-585.14,0.00018222,2]
[368984820,1751425840497,-460.0,0.00018222,2]
[368984822,1751425840506,-460.0,0.00018224,2]
[368984823,1751425840516,-417.48616467,0.00018224,2]
[368984824,1751425840527,-473.38020721,0.00018224,2]
[368984825,1751425840537,-460.0,0.00018224,2]
[368984826,1751425840547,-580.12,0.00018224,2]
[368984827,1751425840556,-469.20878253,0.00018224,2]
[368984828,1751425840566,-460.0,0.00018224,2]
[368984829,1751425840576,-460.0,0.00018224,2]
[368984830,1751425840586,-1684.06,0.00018224,2]
[368984831,1751425840595,-460.0,0.00018226,2]
[368984832,1751425840605,-460.0,0.00018226,2]
[368984833,1751425840614,-460.0,0.00018226,2]
[368984834,1751425840624,-542.71,0.00018226,2]
[368984835,1751425840633,-460.0,0.00018226,2]
[368984836,1751425840644,-460.0,0.00018226,2]
[368984837,1751425840655,-225.7,0.00018226,2]
[368984838,1751425840665,-1365.38,0.00018226,2]
[368984839,1751425840675,-460.0,0.00018226,2]
[368984840,1751425840686,-460.0,0.00018399,2]
[368984841,1751425840695,-460.0,0.000184,2]
[368984842,1751425840705,-1499.04023808,0.00018452,2]
[368984844,1751425840715,-460.0,0.00018495,2]
[368984846,1751425840726,-605.78,0.00018496,2]
[368984848,1751425840737,-1024.45,0.00018496,2]
[368984850,1751425840747,-907.78,0.00018496,2]
[368984852,1751425840757,-1087.91,0.00018496,2]
[368984854,1751425840766,-460.0,0.00018496,2]
[368984856,1751425840776,-816.5,0.00018496,2]
[368984858,1751425840785,-596.78,0.00018496,2]
[368984860,1751425840795,-585.14,0.00018496,2]
[368984862,1751425840804,-263.07380523,0.00018496,2]
[368984864,1751425840814,-460.0,0.00018498,2]
[368984866,1751425840824,-460.0,0.00018498,2]
[368984868,1751425840833,-580.12,0.00018498,2]
[368984870,1751425840843,-163.09,0.00018498,2]
[368984872,1751425840852,-460.0,0.00018498,2]
[368984874,1751425840862,-1684.06,0.00018498,2]
[368984876,1751425840871,-460.0,0.000185,2]
[368984878,1751425840881,-460.0,0.000185,2]
[368984880,1751425840890,-460.0,0.000185,2]
[368984882,1751425840900,-542.71,0.000185,2]
[368984884,1751425840909,-460.0,0.000185,2]
[368984886,1751425840919,-460.0,0.000185,2]
[368984888,1751425840928,-1365.38,0.000185,2]
[368984890,1751425840937,-460.0,0.000185,2]
[368984892,1751425840947,-1000.0,0.000186,2]
[368984894,1751425840956,-1000.0,0.000186,3]
[368984896,1751425840966,-214.13776085,0.00018673,2]
[368984898,1751425840975,-460.0,0.00018674,2]
[368984900,1751425840984,-420.0,0.00018698,2]
[368984902,1751425840994,-1499.04023808,0.00018728,2]
[368984904,1751425841003,-580.4773916,0.00018769,2]
[368984906,1751425841013,-605.78,0.0001877,2]
[368984908,1751425841023,-1024.45,0.0001877,2]
[368984910,1751425841032,-907.78,0.0001877,2]
[368984912,1751425841041,-1087.91,0.0001877,2]
[368984914,1751425841050,-460.0,0.0001877,2]
[368984916,1751425841060,-816.5,0.0001877,2]
[368984918,1751425841069,-596.78,0.0001877,2]
[368984920,1751425841078,-585.14,0.0001877,2]
[368984922,1751425841088,-460.0,0.00018772,2]
[368984924,1751425841097,-460.0,0.00018772,2]
[368984926,1751425841106,-580.12,0.00018772,2]
[368984928,1751425841115,-460.0,0.00018772,2]
[368984930,1751425841124,-1684.06,0.00018772,2]
[368984932,1751425841133,-460.0,0.00018774,2]
[368984934,1751425841142,-460.0,0.00018774,2]
[368984936,1751425841151,-460.0,0.00018774,2]
[368984938,1751425841161,-542.71,0.00018774,2]
[368984940,1751425841170,-460.0,0.00018774,2]
[368984942,1751425841179,-460.0,0.00018774,2]
[368984944,1751425841189,-1365.38,0.00018774,2]
[368984946,1751425841199,-460.0,0.00018774,2]
[368984948,1751425841209,-1339.0,0.00018791,2]
[368984950,1751425841218,-1000.0,0.000188,4]
[368984951,1751425841230,-542.88,0.00018841,3]
[368984953,1751425841239,-519.46,0.00018841,3]
[368984955,1751425841249,-3855.15635464,0.000189,2]
[368984957,1751425841258,-460.0,0.00018948,2]
[368984959,1751425841267,-160.0,0.00018965,2]
[368984961,1751425841277,-230.34465076,0.00018965,2]
[368984963,1751425841286,-215.04179405,0.00018965,2]
[368984965,1751425841295,-837.27862799,0.00018965,2]
[368984968,1751425841306,-160.0,0.00018965,2]
[368984970,1751425841316,-160.0,0.00018965,2]
[368984972,1751425841325,-160.0,0.00018966,2]
[368984974,1751425841334,-12573.65100011,0.00018966,2]
[368984976,1751425841344,-847.65867985,0.00018966,2]
[368984978,1751425841353,-213.90888375,0.00018966,2]
[368984980,1751425841362,-160.0,0.00018966,2]
[368984982,1751425841371,-160.0,0.00018966,2]
[368984984,1751425841381,-1499.04023808,0.00019003,2]
[368984986,1751425841390,-605.78,0.00019044,2]
[368984988,1751425841400,-1024.45,0.00019044,2]
[368984990,1751425841409,-907.78,0.00019044,2]
[368984992,1751425841419,-1087.91,0.00019044,2]
[368984994,1751425841428,-460.0,0.00019044,2]
[368984996,1751425841437,-816.5,0.00019044,2]
[368984998,1751425841446,-596.78,0.00019044,2]
[368985000,1751425841455,-585.14,0.00019044,2]
[368985002,1751425841466,-460.0,0.00019046,2]
[368985004,1751425841475,-460.0,0.00019046,2]
[368985006,1751425841484,-580.12,0.00019046,2]
[368985008,1751425841493,-460.0,0.00019046,2]
[368985010,1751425841502,-1684.06,0.00019046,2]
[368985012,1751425841513,-460.0,0.00019048,2]
[368985014,1751425841522,-460.0,0.00019048,2]
[368985016,1751425841532,-460.0,0.00019048,2]
[368985018,1751425841541,-542.71,0.00019048,2]
[368985020,1751425841550,-460.0,0.00019048,2]
[368985022,1751425841559,-460.0,0.00019048,2]
[368985024,1751425841569,-1365.38,0.00019048,2]
[368985026,1751425841579,-460.0,0.00019048,2]
[368985028,1751425841588,-176.502852,0.00019178,2]
[368985030,1751425841597,-460.0,0.00019222,2]
[368985032,1751425841607,-1499.04023808,0.00019279,2]
[368985034,1751425841616,-1375.74535322,0.00019308,2]
[368985036,1751425841625,-605.78,0.00019318,2]
[368985038,1751425841634,-1024.45,0.00019318,2]
[368985040,1751425841644,-907.78,0.00019318,2]
[368985042,1751425841655,-1087.91,0.00019318,2]
[368985044,1751425841664,-460.0,0.00019318,2]
[368985046,1751425841673,-816.5,0.00019318,2]
[368985048,1751425841683,-596.78,0.00019318,2]
[368985050,1751425841692,-585.14,0.00019318,2]
[368985052,1751425841701,-460.0,0.0001932,2]
[368985054,1751425841710,-460.0,0.0001932,2]
[368985056,1751425841720,-580.12,0.0001932,2]
[368985058,1751425841730,-460.0,0.0001932,2]
[368985060,1751425841739,-1684.06,0.0001932,2]
[368985062,1751425841748,-460.0,0.00019322,2]
[368985064,1751425841757,-460.0,0.00019322,2]
[368985066,1751425841766,-460.0,0.00019322,2]
[368985068,1751425841775,-542.71,0.00019322,2]
[368985070,1751425841786,-460.0,0.00019322,2]
[368985072,1751425841795,-460.0,0.00019322,2]
[368985074,1751425841804,-1365.38,0.00019322,2]
[368985076,1751425841813,-460.0,0.00019322,2]
[368985078,1751425841822,-48224.83153581,0.00019329,2]
[368985080,1751425841832,-460.0,0.00019496,2]
[368985082,1751425841841,-1499.04023808,0.00019555,2]
[368985084,1751425841850,-605.78,0.00019592,2]
[368985086,1751425841859,-1024.45,0.00019592,2]
[368985088,1751425841868,-907.78,0.00019592,2]
[368985090,1751425841878,-1087.91,0.00019592,2]
[368985092,1751425841887,-460.0,0.00019592,2]
[368985095,1751425841896,-816.5,0.00019592,2]
[368985097,1751425841906,-596.78,0.00019592,2]
[368985099,1751425841916,-585.14,0.00019592,2]
[368985101,1751425841925,-460.0,0.00019594,2]
[368985103,1751425841934,-460.0,0.00019594,2]
[368985105,1751425841944,-580.12,0.00019594,2]
[368985107,1751425841954,-460.0,0.00019594,2]
[368985109,1751425841964,-1684.06,0.00019594,2]
[368985111,1751425841973,-460.0,0.00019596,2]
[368985113,1751425841982,-460.0,0.00019596,2]
[368985115,1751425841991,-460.0,0.00019596,2]